Cogmind - Beta 9.4 @@@ ROGUE MODE // 2020.02.19 @ 19:16:21 // Winter2019/RPGLIKE Player: Exeight Result: Self-destructed Performance ------------- Evolutions (0) 0 Regions Visited (4) 800 Robots Destroyed (33) 165 Value Destroyed (737) 737 Prototype IDs (22) 440 Alien Tech Used (0) 0 Bonus (333) 333 TOTAL SCORE: 2475 Bonus ------- Follower Combat Kills 33 Aligned with FarCom 300 Cogmind --------- Core Integrity 262/600 Matter 105/300 Energy 160/160 System Corruption 0% Temperature Cool (362) Movement Treading (160) Location -9/Mines Parts ------- > --- POWER (1) -------- Light Nuclear Core > --- PROPULSION (2) --- Light Treads Light Treads > --- UTILITY (2) ------ Targeting Computer Targeting Computer > --- WEAPON (5) ------- XL Autogun Array Slug Cannon > --- INVENTORY (0) ---- (None) Peak State ------------ > --- POWER ------------ Light Nuclear Core > --- PROPULSION ------- Light Treads Light Treads > --- UTILITY ---------- Targeting Computer Targeting Computer > --- WEAPON ----------- XL Autogun Array Slug Cannon > --- INVENTORY -------- (None) [Rating: 47] Favorites ----------- Power Light Ion Engine Engine Light Ion Engine Power Core Light Nuclear Core Propulsion Light Treads Treads Light Treads Utility Targeting Computer Device Heat Sink Processor Targeting Computer Weapon Assault Rifle Energy Gun Beam Rifle Ballistic Gun Assault Rifle Ballistic Cannon Slug Cannon Build | -11 -10 -10 -10 -9 ------- Run | Scr Mat Min Exi Min Slots Evolved 6 | 3 . 2 1 . Power . | . . . . . Propulsion 1 | 1 . . . . Utility 1 | . . 1 . . Weapon 4 | 2 . 1 1 . Parts Attached 16 | 6 4 5 1 . Power 2 | 1 . 1 . . Engine 1 | 1 . . . . Core 1 | . . 1 . . Reactor . | . . . . . Propulsion 2 | 2 . . . . Treads 2 | 2 . . . . Leg . | . . . . . Wheel . | . . . . . Hover . | . . . . . Flight . | . . . . . Utility 3 | . 2 1 . . Device 1 | . 1 . . . Storage . | . . . . . Processor 2 | . 1 1 . . Hackware . | . . . . . Protection . | . . . . . Artifact . | . . . . . Weapon 9 | 3 2 3 1 . Energy Gun 1 | . . 1 . . Energy Cannon . | . . . . . Ballistic Gun 7 | 3 2 1 1 . Ballistic Cannon 1 | . . 1 . . Launcher . | . . . . . Special Weapon . | . . . . . Impact Weapon . | . . . . . Slashing Weapon . | . . . . . Piercing Weapon . | . . . . . Special Melee Weapon . | . . . . . Unidentified Prototypes . | . . . . . Parts Lost . | . . . . . Power . | . . . . . Propulsion . | . . . . . Utility . | . . . . . Weapon . | . . . . . Highest Loss Streak . | . . . . . Average Slot Usage (%) 96 | . 96 99 86 70 Engine 7 | . 14 4 . . Core 5 | . . 8 10 10 Treads 26 | . 28 26 21 20 Device 1 | . 3 . . . Processor 14 | . 7 17 21 20 Energy Gun 2 | . . 3 6 . Ballistic Gun 34 | . 42 35 16 10 Ballistic Cannon 2 | . . 1 10 10 Naked Turns . | . . . . . Heaviest Build 27 | 6 9 19 27 27 Greatest Support 40 | 40 40 40 40 40 Greatest Overweight (x) . | . . . . . Average Overweight (x) . | . . . . . Largest Inventory Capacity . | . . . . . Average Capacity . | . . . . . Most Carried . | . . . . . Average Carried . | . . . . . Final Capacity . | . . . . . Final Carried . | . . . . . Class Distribution -------------------- 100% | Gunner Dominant Class ---------------- Gunner | -10/Materials Gunner | -10/Mines Gunner | -10/Exiles Gunner | -9/Mines Resources | -11 -10 -10 -10 -9 ----------- Run | Scr Mat Min Exi Min Matter Collected 833 | 252 240 316 . 25 Remotely . | . . . . . Salvage Created 1114 | . 607 417 . 90 Parts 64 | . 27 32 . 5 Haulers Intercepted 1 | . 1 . . . Recyclers Shooed . | . . . . . Parts Field Recycled . | . . . . . Retrieved Matter . | . . . . . Parts Self-Destructed . | . . . . . Prevented . | . . . . . Kills | -11 -10 -10 -10 -9 ------- Run | Scr Mat Min Exi Min Combat Hostiles Destroyed 25 | . 6 14 . 5 Guns 25 | . 6 14 . 5 Classes Destroyed 9 | . 5 3 . 1 Tunneler 1 | . . 1 . . Hauler 1 | . 1 . . . Recycler 2 | . 2 . . . Operator 2 | . 2 . . . Watcher 2 | . 2 . . . Swarmer 12 | . . 9 . 3 Grunt 11 | . 6 4 . 1 Duelist 1 | . . . . 1 Sentry 1 | . . 1 . . Best Kill Streak 3 | . 3 3 . 3 Combat Bots Only 3 | . 2 3 . 3 Max Kills in Single Turn 2 | . 1 2 . 1 Gunslinging 1 | . . 1 . . Exploded . | . . . . . Melee . | . . . . . Uniques/NPCs Destroyed . | . . . . . Combat | -11 -10 -10 -10 -9 -------- Run | Scr Mat Min Exi Min Damage Taken 773 | . 248 434 . 91 Core 611 | . 196 347 . 68 Absorbed by Shields . | . . . . . Redirected to Core 503 | . 158 277 . 68 Core Remaining (%) 100 | 100 . . . . Volleys Fired 88 | . 41 37 . 10 Largest 4 | . 3 4 . 2 Hottest 144 | . 60 144 . 108 Shots Fired 256 | . 123 113 . 20 Gun 244 | . 123 111 . 10 Cannon 12 | . . 2 . 10 Launcher . | . . . . . Special . | . . . . . Kinetic 244 | . 123 101 . 20 Thermal 12 | . . 12 . . Explosive . | . . . . . Electromagnetic . | . . . . . Robot Hit Streak 12 | . 12 12 . 9 Robot Miss Streak 3 | . 3 2 . 3 Penetration Max . | . . . . . Secondary Targets 5 | . 2 3 . . Max Gunslinging Chain 1 | . 1 1 . . Shots Hit Robots 156 | . 80 63 . 13 Core Hits 56 | . 28 22 . 6 Critical Hits . | . . . . . Critical Kills . | . . . . . Critical Parts Destroyed . | . . . . . Melee Attacks . | . . . . . Impact . | . . . . . Slashing . | . . . . . Piercing . | . . . . . Sneak Attacks . | . . . . . Combat Hostiles . | . . . . . Follow-up Attacks . | . . . . . Damage Inflicted 1902 | . 721 715 . 466 Guns 1868 | . 721 715 . 432 Cannons 34 | . . . . 34 Explosions . | . . . . . Melee . | . . . . . Ramming . | . . . . . Kinetic 1775 | . 721 588 . 466 Thermal 127 | . . 127 . . Explosive . | . . . . . Electromagnetic . | . . . . . Impact . | . . . . . Slashing . | . . . . . Piercing . | . . . . . Highest Corruption . | . . . . . Average Corruption . | . . . . . Corruption Purged . | . . . . . Overload Shots . | . . . . . Overflow Damage . | . . . . . Projectiles . | . . . . . Explosions . | . . . . . Melee . | . . . . . Knockbacks . | . . . . . Impact . | . . . . . Kinetic . | . . . . . Secondary . | . . . . . Self-Inflicted Damage . | . . . . . Shots . | . . . . . Rammed . | . . . . . Targets Rammed . | . . . . . Kicked . | . . . . . Crushed . | . . . . . Highest Temperature 362 | . 60 276 . 362 Average Temperature 75 | . 18 61 . 181 Received Heat Transfer 312 | . 132 162 . 18 Siege Activations . | . . . . . Robots Corrupted . | . . . . . Combat Hostiles . | . . . . . Parts Fried . | . . . . . Impact Corruptions . | . . . . . Robots Melted . | . . . . . Combat Hostiles . | . . . . . Parts Melted . | . . . . . Heat Transferred 333 | . . 333 . . Parts Sabotaged . | . . . . . Parts Stolen . | . . . . . Parts Stripped . | . . . . . Power Chain Reactions . | . . . . . Missiles Intercepted . | . . . . . Alert | -11 -10 -10 -10 -9 ------- Run | Scr Mat Min Exi Min Peak Influence 169 | . 169 140 . 165 Average Influence 51 | . 48 52 . 93 Maximum Alert Level . | . . . . . Low Security (%) 100 | 100 100 100 . 100 Level 1 . | . . . . . Level 2 . | . . . . . Level 3 . | . . . . . Level 4 . | . . . . . Level 5 . | . . . . . High Security . | . . . . . Max Security . | . . . . . Squads Dispatched 3 | . 3 . . . Investigation . | . . . . . Extermination . | . . . . . Reinforcement 3 | . 3 . . . Assault . | . . . . . Garrison . | . . . . . Intercept . | . . . . . Construction Impeded . | . . . . . Haulers Reinforced . | . . . . . Stealth | -11 -10 -10 -10 -9 --------- Run | Scr Mat Min Exi Min Distress Signals 1 | . 1 . . . Communications Jammed . | . . . . . Distress Signals . | . . . . . Times Spotted 38 | . 19 14 . 5 Peak Tracking Total 4 | . 4 3 . 3 Tactical Retreats . | . . . . . Traps | -11 -10 -10 -10 -9 ------- Run | Scr Mat Min Exi Min Traps Triggered . | . . . . . Indirectly . | . . . . . Trap Hack Attempts . | . . . . . Triggered . | . . . . . Disarmed . | . . . . . Reprogrammed . | . . . . . Reused . | . . . . . Traps Extracted . | . . . . . Installed . | . . . . . Triggered 1 | . . 1 . . Machines | -11 -10 -10 -10 -9 ---------- Run | Scr Mat Min Exi Min Machines Disabled 4 | . . 1 . 3 Max in Single Turn 1 | . . 1 . 1 Machines Sabotaged . | . . . . . Garrisons Compromised . | . . . . . Overloaded Fab Kills . | . . . . . Fab Network Shutdowns . | . . . . . Hacking | -11 -10 -10 -10 -9 --------- Run | Scr Mat Min Exi Min Machines Accessed 1 | . . . 1 . Terminals . | . . . . . Fabricators . | . . . . . Repair Stations . | . . . . . Recycling Units . | . . . . . Scanalyzers . | . . . . . Garrison Access . | . . . . . Total Hacks 1 | . . . 1 . Successful 1 | . . . 1 . Failed . | . . . . . Catastrophic . | . . . . . Database Lockouts . | . . . . . Manual 1 | . . . 1 . Terminals . | . . . . . Fabricators . | . . . . . Repair Stations . | . . . . . Recycling Units . | . . . . . Scanalyzers . | . . . . . Garrison Access . | . . . . . Terminal Hacks 1 | . . . 1 . EX-Prototype ID Bank 1 | . . . 1 . Fabricator Hacks . | . . . . . Repair Station Hacks . | . . . . . Recycling Unit Hacks . | . . . . . Scanalyzer . | . . . . . Garrison Access Hacks . | . . . . . Unauthorized Hacks . | . . . . . Terminals . | . . . . . Fabricators . | . . . . . Repair Stations . | . . . . . Recycling Units . | . . . . . Scanalyzers . | . . . . . Garrison Access . | . . . . . Data Cores Recovered . | . . . . . Used . | . . . . . Hacking Detections . | . . . . . Full Trace Events . | . . . . . Feedback Events . | . . . . . Feedback Blocked . | . . . . . Robot Schematics Acquired . | . . . . . Robots Built . | . . . . . Matter . | . . . . . Time . | . . . . . Total Robot Build Rating . | . . . . . Part Schematics Acquired . | . . . . . Parts Built . | . . . . . Matter . | . . . . . Time . | . . . . . Total Part Build Rating . | . . . . . Parts Repaired . | . . . . . Time . | . . . . . Parts Recycled . | . . . . . Recycled Matter . | . . . . . Retrieved Matter . | . . . . . Retrieved Components . | . . . . . Parts Scanalyzed . | . . . . . Part Schematics Acquired . | . . . . . Parts Damaged . | . . . . . Bothacking | -11 -10 -10 -10 -9 ------------ Run | Scr Mat Min Exi Min Used RIF Installer . | . . . . . Robots Hacked . | . . . . . Non-combat . | . . . . . Combat . | . . . . . Robot Hacks Applied . | . . . . . Relay Couplers Released . | . . . . . Robots Rewired . | . . . . . Allies Hacked . | . . . . . Hacks Repelled . | . . . . . Allies | -11 -10 -10 -10 -9 -------- Run | Scr Mat Min Exi Min Total Allies 1 | . . 1 . . Largest Group 1 | . . 1 . . Highest-Rated Group 31 | . . 31 . . Highest-Rated Ally 31 | . . 31 . . Total Orders . | . . . . . Ally Attacks 6 | . . 6 . . Total Damage 107 | . . 107 . . Kills 1 | . . 1 . . Allies Corrupted . | . . . . . Allies Melted . | . . . . . Intel | -11 -10 -10 -10 -9 ------- Run | Scr Mat Min Exi Min Robot Analysis Total . | . . . . . Derelict Logs Recovered 2 | . . 2 . . Drone Launches . | . . . . . Drone Recoveries . | . . . . . Exploration | -11 -10 -10 -10 -9 ------------- Run | Scr Mat Min Exi Min Turns Passed 2763 | 57 842 1461 343 60 Spaces Moved 1406 | 33 428 709 213 23 Core 3 | 3 . . . . Treads 1403 | 30 428 709 213 23 Legs . | . . . . . Wheels . | . . . . . Hover . | . . . . . Flight . | . . . . . Fastest Speed 50 | 50 160 160 160 160 Average Speed 159 | 150 160 160 160 160 Slowest Speed 160 | 160 160 160 160 160 Overloaded Moves . | . . . . . Propulsion Burnouts . | . . . . . Robots Hopped . | . . . . . Cave-ins Triggered . | . . . . . Exploration Rate (%) 49 | 4 68 100 60 13 Regions Visited 4 Branch Regions 3 Pre-discovered Areas . | . . . . . Known Exits Taken . | . . . . . Unknown Exits Taken 4 | 1 1 1 1 . Scrap Searched 2 | . . 2 . . Spaces Dug . | . . . . . Terrain Destroyed 14 | . . 1 . 13 Melee . | . . . . . Projectile 14 | . . 1 . 13 AOE . | . . . . . Actions | -11 -10 -10 -10 -9 --------- Run | Scr Mat Min Exi Min Total 1756 | 38 510 956 216 36 Wait 226 | . 35 191 . . Move 1402 | 32 427 708 212 23 Hop . | . . . . . Pick Up . | . . . . . Fast Attach 16 | 6 4 5 1 . Attach . | . . . . . Detach . | . . . . . Swap . | . . . . . Drop 9 | . 3 3 3 . Fire 88 | . 41 37 . 10 Melee . | . . . . . Ram . | . . . . . Kick . | . . . . . Crush . | . . . . . Escape Stasis . | . . . . . Rewire . | . . . . . Trap . | . . . . . Miscellaneous 15 | . . 12 . 3 Route ------- -11/Scrapyard -10/Materials (discovered 3 exits: [*Mat x2] / [*Min]) -10/Mines (discovered 3 exits: [*Mat x2] / *Exi) -10/Exiles -9/Mines History --------- Turn | Location | Event 1 | -11/Scrapyard | Upgraded with Propulsion slot (x1) 1 | -11/Scrapyard | Upgraded with Weapon slot (x2) 17 | -11/Scrapyard | Discovered new exit (range 13) 58 | -11/Scrapyard | Entered Materials 305 | -10/Materials | Build established: Gunner 374 | -10/Materials | Discovered new exit (range 16) 635 | -10/Materials | Discovered new exit (range 16) 849 | -10/Materials | Discovered new exit (range 15) 900 | -10/Materials | Entered Mines 907 | -10/Mines | Learned Materials stockpile data 909 | -10/Mines | Excavation squad dispatched 909 | -10/Mines | A large section of the Mines collapsed 1129 | -10/Mines | Deemed a non-threat by the Exiles lab entrance 1129 | -10/Mines | Discovered new exit (range 5) 1308 | -10/Mines | Reached level 2 1686 | -10/Mines | Learned 2 Materials zone layouts 1697 | -10/Mines | Received a Mining Laser from a helpful Derelict 1888 | -10/Mines | Upgraded with Utility slot (x1) 2025 | -10/Mines | Core integrity fell below 50% 2094 | -10/Mines | Discovered new exit (range 4) 2118 | -10/Mines | Discovered new exit (range 11) 2129 | -10/Mines | Reached level 3 2142 | -10/Mines | A weapon hastily lodged in a ceiling crevice suddenly fell to the ground 2162 | -10/Mines | Upgraded with Weapon slot (x1) 2361 | -10/Mines | Entered Exiles 2401 | -10/Exiles | Met 8R-AWN 2427 | -10/Exiles | Met EX-HEX 2483 | -10/Exiles | Met EX-BIN 2501 | -10/Exiles | Aligned with FarCom system 2502 | -10/Exiles | Given EX-Vault access code 2539 | -10/Exiles | Opened EX-Vault 2545 | -10/Exiles | Upgraded with Weapon slot (x1) 2553 | -10/Exiles | Found XL Autogun Array 2588 | -10/Exiles | Warned to stay clear of 0b10 Research branches 2633 | -10/Exiles | Met EX-DEC 2691 | -10/Exiles | Discovered new exit (range 10) 2704 | -10/Exiles | Left Exiles lab with XL Autogun Array 2704 | -10/Exiles | Entered Mines 2714 | -9/Mines | Reached level 4 2764 | -9/Mines | Self-destructed Last Messages --------------- your atomic chain! EX-DEC: "Oops, I hope HEX didn't hear that..." EXIT=FOUND LOCATION=UNKNOWN GOAL=ESCAPE Receiving FarCom transmissions... Seismic Survey Station disabled. Destroyed Flight Unit. S-10 Pest destroyed. Seismic Survey Station disabled. Destroyed Flight Unit. S-10 Pest destroyed. Reached level 4. S-10 Pest destroyed. Used Protomatter to restore core integrity (+30, depleted) Used Protomatter to restore core integrity (+3, depleted) Acquired 25 matter. L-31 Rogue destroyed. G-34 Mercenary destroyed. U-05 Engineer builds a Wall. Map ----- +----------------------------------------------------+ | ?????????????????????????????????????????????????? | | ?????????????????????????????????????????????????? | | ?????????????????????????????????????????????????? | | ?????????????????????????????????????????????????? | | ?????????????????????????????????????????????????? | | ?????????????????????????????????????????????????? | | ?????????????????????????????????????????????????? | | ?????????????????????????????????????????????????? | | ?????????????????????????????????????????????????? | | ?????????????????????????????????????????????????? | | ???????????????????????? ????????????????????????? | | ???????????????????????? ????????????????????????? | | ???????????????????????? ????????????????????????? | | ???????????????????????# ????????????????????????? | | ???????????????????????=%????????????????????????? | | ??????????????????????? ????????????????????????? | | ?????????????????????### #???????????? ??????????? | | ????????????????????## # ;#??????????? ??????????? | | ????????????????????? ;; ;##?????????? ??????????? | | ?????????????????????#; u;;#???####### ####??##??? | | ????????????????????## t####?# ? #??? | | ??????????????????### =% u ??# """ """ """ #??? | | ??????????????????? ??# """ """ """ #??? | | ????????????????????? #? ## """ """ """ #??? | | ??????????????????????# #?? #??? | | ?????????????????????## @ #???# """ """ """ #??? | | ?????????????????????# ##### """ """ "" #??? | | ????????????????????## """ """ * #??? | | ????????????????????# [ #??? | | ???????????????????# ###### """ [ #??? | | ???????????????????# #????# """ "" #??? | | ???????????????????## #?????# """ "" #??? | | ????????????????????#####??????# #??? | | ???????????????????????????????###########"####??? | | ??????????????????????????????????????????##?????? | | | | | | | | | | | | | | | | | | | | | | | | | | | | | | | +----------------------------------------------------+ Best States ------------- Heat Dissipation 35 Energy Generation 14 Energy Capacity 160 Matter Stores 300 Matter Capacity 300 Sight Range 16 Terrain Scan Density 10 Evasion (%) 40 Targeting Accuracy 10 Recoil Reduction 2 Item Schematics ----------------- None Robot Schematics ------------------ None Fabricated ------------ Nothing Alien Tech Used ----------------- None Achievements -------------- None Challenges ------------ None RPGLIKE | -11 -10 -10 -10 -9 --------- Run | Scr Mat Min Exi Min Levels Raised 3 | . . 2 . 1 XP Earned 7881 | 3000 905 2301 350 1325 XP Spent 5700 | 2700 . 1600 1400 . Upgrades 8 | 5 . 2 1 . Propulsion Slot 1 | 1 . . . . Utility Slot 1 | . . 1 . . Weapon Slot 4 | 2 . 1 1 . Ranged Accuracy 2 | 2 . . . . Protomatter Created 117 | . . 80 . 37 Integrity Restored 273 | . . 240 . 33 Core 273 | . . 240 . 33 Protomatter Decayed . | . . . . . Game ------ Seed DataMyomerArray Manual? 0 Play Time 00:19:11 Cumulative 55.9 hours Start 2020.02.16 @ 22:46:07 End 2020.02.19 @ 19:16:21 Sessions 2 Manual Loads 0 Difficulty Rogue Special Mode Winter2019/RPGLIKE Game No. 62 Rogue 62 Adventurer 0 Explorer 0 Win Type - Total 0 Types 0/0/0/0/0/0/0 Lore% 22 Gallery% 29 Achievement% 29 Wizard Run 0 Options --------- ASCII 0 Keyboard 0 Movement Mouse Keybinds 0 Fullscreen 0 Font 32/SmallcapsGlow Map View 76x50 Tactical HUD 0 Map Filters NONE Filters NONE Steam 1 RUN: 669781bc-8d44-4d9d-9624-82ae403e8e58